fUSD/lending_fUSD_20241225
["ID","MTS","AMOUNT","RATE_DAILY","PERIOD"]
[346589210,1735119047871,-1069.2,9.783e-05,2]
[346589211,1735119047880,-1009.45,9.783e-05,2]
[346589212,1735119047889,-500.0,9.783e-05,2]
[346589213,1735119047899,-913.48,9.783e-05,2]
[346589214,1735119047908,-648.54,9.783e-05,2]
[346589215,1735119047917,-709.26,9.783e-05,2]
[346589216,1735119047927,-500.0,9.783e-05,2]
[346589217,1735119047937,-500.0,9.783e-05,2]
[346589218,1735119047947,-511.77967514,9.783e-05,2]
[346589219,1735119047956,-1346.52,9.783e-05,2]
[346589220,1735119047965,-500.0,9.783e-05,2]
[346589221,1735119047974,-766.0,9.784e-05,2]
[346589222,1735119047984,-500.0,9.784e-05,2]
[346589223,1735119047993,-500.0,9.784e-05,2]
[346589224,1735119048003,-500.0,9.784e-05,2]
[346589225,1735119048012,-500.0,9.784e-05,2]
[346589226,1735119048179,-500.0,9.784e-05,2]
[346589227,1735119048189,-769.41,9.784e-05,2]
[346589228,1735119048199,-500.0,9.784e-05,2]
[346589229,1735119048209,-500.0,9.784e-05,2]
[346589230,1735119048218,-817.06,9.784e-05,2]
[346589231,1735119048229,-1355.51,9.784e-05,2]
[346589232,1735119048239,-500.0,9.784e-05,2]
[346589233,1735119048249,-500.0,9.784e-05,2]
[346589234,1735119048258,-500.0,9.784e-05,2]
[346589235,1735119048267,-754.05,9.784e-05,2]
[346589236,1735119048277,-500.0,9.784e-05,2]
[346589237,1735119048286,-1717.87,9.784e-05,2]
[346589238,1735119048295,-500.0,9.784e-05,2]
[346589239,1735119048305,-500.0,9.784e-05,2]
[346589240,1735119048314,-637.25,9.784e-05,2]
[346589241,1735119048324,-500.0,9.784e-05,2]
[346589242,1735119048333,-1678.92,9.784e-05,2]
[346589243,1735119048342,-500.0,9.785e-05,2]
[346589244,1735119048351,-500.0,9.785e-05,2]
[346589245,1735119048360,-1678.92,9.785e-05,2]
[346589246,1735119048370,-956.13,9.924e-05,2]
[346589247,1735119048379,-3639.05,9.924e-05,2]
[346589248,1735119048388,-1461.81,9.924e-05,2]
[346589249,1735119048400,-2200.51,9.924e-05,2]
[346589250,1735119048409,-3045.48,9.924e-05,2]
[346589251,1735119048419,-10262.81,9.924e-05,2]
[346589252,1735119048428,-16713.09,9.924e-05,2]
[346589253,1735119048437,-1209.4,9.924e-05,2]
[346589254,1735119048446,-1334.37,9.924e-05,2]
[346589255,1735119048455,-500.0,9.924e-05,2]
[346589256,1735119048465,-1181.62,9.924e-05,2]
[346589257,1735119048475,-1865.73,9.924e-05,2]
[346589258,1735119048484,-2722.4,9.924e-05,2]
[346589259,1735119048494,-728.31,9.924e-05,2]
[346589260,1735119048503,-4225.83,9.924e-05,2]
[346589261,1735119048512,-651.61,9.924e-05,2]
[346589262,1735119048522,-2088.33,9.924e-05,2]
[346589263,1735119048534,-2042.74,9.924e-05,2]
[346589264,1735119048544,-6289.66,9.924e-05,2]
[346589265,1735119048553,-2914.72,9.924e-05,2]
[346589266,1735119048563,-4753.7,9.924e-05,2]
[346589267,1735119048572,-1380.26,9.924e-05,2]
[346589268,1735119048582,-1601.55,9.924e-05,2]
[346589269,1735119048591,-2780.72,9.924e-05,2]
[346589270,1735119048600,-3958.21,9.924e-05,2]
[346589271,1735119048609,-1252.76,9.924e-05,2]
[346589272,1735119048618,-1993.91,9.924e-05,2]
[346589273,1735119048627,-577.58,9.924e-05,2]
[346589274,1735119048637,-1202.34,9.924e-05,2]
[346589275,1735119048646,-3583.81,9.924e-05,2]
[346589276,1735119048655,-1419.89,9.924e-05,2]
[346589277,1735119048665,-1153.02,9.924e-05,2]
[346589278,1735119048675,-500.0,9.924e-05,2]
[346589279,1735119048686,-500.0,9.924e-05,2]
[346589280,1735119048697,-2717.26,9.924e-05,2]
[346589281,1735119048707,-2444.72,9.924e-05,2]
[346589282,1735119048717,-500.0,9.924e-05,2]
[346589283,1735119048726,-500.0,9.924e-05,2]
[346589284,1735119048736,-500.0,9.924e-05,2]
[346589285,1735119048746,-500.0,9.924e-05,2]
[346589286,1735119048755,-2694.04,9.924e-05,2]
[346589287,1735119048764,-1023.76,9.924e-05,2]
[346589288,1735119048773,-500.0,9.924e-05,2]
[346589289,1735119048782,-500.0,9.924e-05,2]
[346589290,1735119048792,-500.0,9.924e-05,2]
[346589291,1735119048801,-500.0,9.924e-05,2]
[346589292,1735119048810,-878.91,9.924e-05,2]
[346589293,1735119048820,-500.0,9.924e-05,2]
[346589294,1735119048829,-1626.9,9.924e-05,2]
[346589295,1735119048838,-2282.6,9.925e-05,2]
[346589296,1735119048848,-2019.05,9.925e-05,2]
[346589297,1735119048857,-1444.24,9.925e-05,2]
[346589298,1735119048866,-500.0,9.925e-05,2]
[346589299,1735119048876,-1784.34,9.925e-05,2]
[346589300,1735119048885,-1223.49,9.925e-05,2]
[346589301,1735119048894,-500.0,9.925e-05,2]
[346589302,1735119048903,-2420.44,9.925e-05,2]
[346589303,1735119048913,-1098.25,9.925e-05,2]
[346589304,1735119048924,-1714.39,9.925e-05,2]
[346589305,1735119048933,-2128.9,9.925e-05,2]
[346589306,1735119048942,-1134.62,9.925e-05,2]
[346589307,1735119048952,-1775.29,9.925e-05,2]
[346589308,1735119048961,-500.0,9.925e-05,2]
[346589309,1735119048971,-1557.66,9.925e-05,2]
[346589310,1735119048980,-3264.98,9.925e-05,2]
[346589311,1735119048989,-1208.75,9.925e-05,2]
[346589312,1735119048999,-1971.85,9.925e-05,2]
[346589313,1735119049008,-1624.95,9.925e-05,2]
[346589314,1735119049017,-1271.99,9.925e-05,2]
[346589315,1735119049026,-1868.14,9.925e-05,2]
[346589316,1735119049035,-1467.19,9.925e-05,2]
[346589317,1735119049045,-1799.34,9.925e-05,2]
[346589318,1735119049054,-1830.07,9.925e-05,2]
[346589319,1735119049064,-2636.01,9.925e-05,2]
[346589320,1735119049072,-1166.74,9.925e-05,2]
[346589321,1735119049082,-500.0,9.925e-05,2]
[346589322,1735119049091,-1397.64,9.925e-05,2]
[346589323,1735119049100,-1046.44,9.925e-05,2]
[346589324,1735119049109,-1595.5,9.925e-05,2]
[346589325,1735119049119,-818.78,9.925e-05,2]
[346589326,1735119049128,-500.0,9.925e-05,2]
[346589327,1735119049138,-500.0,9.925e-05,2]
[346589328,1735119049147,-1576.89,9.925e-05,2]
[346589329,1735119049157,-917.23,9.925e-05,2]
[346589330,1735119049166,-2957.03,9.925e-05,2]
[346589331,1735119049177,-1751.32,9.925e-05,2]
[346589332,1735119049187,-500.0,9.925e-05,2]
[346589333,1735119049196,-605.0,9.925e-05,2]
[346589334,1735119049206,-2340.58,9.925e-05,2]
[346589335,1735119049215,-500.0,9.925e-05,2]
[346589336,1735119049225,-2730.45,9.925e-05,2]
[346589337,1735119049235,-2033.73,9.925e-05,2]
[346589338,1735119049244,-2217.27,9.925e-05,2]
[346589339,1735119049254,-961.96,9.925e-05,2]
[346589340,1735119049264,-2150.36,9.925e-05,2]
[346589341,1735119049274,-2103.01,9.925e-05,2]
[346589342,1735119049284,-549.48,9.925e-05,2]
[346589343,1735119049293,-893.99,9.925e-05,2]
[346589344,1735119049303,-1805.54,9.925e-05,2]
[346589345,1735119049312,-500.0,9.925e-05,2]
[346589346,1735119049322,-500.0,9.925e-05,2]
[346589347,1735119049331,-1673.3,9.925e-05,2]
[346589348,1735119049340,-1546.8,9.925e-05,2]
[346589349,1735119049349,-1875.89,9.925e-05,2]
[346589350,1735119049359,-1542.57,9.925e-05,2]
[346589351,1735119049368,-1492.44,9.925e-05,2]
[346589352,1735119049377,-500.0,9.925e-05,2]
[346589353,1735119049387,-1670.91,9.925e-05,2]
[346589354,1735119049396,-2059.57,9.925e-05,2]
[346589355,1735119049405,-1515.96,9.925e-05,2]
[346589356,1735119049415,-393.70511853,9.925e-05,2]
[346589357,1735119049426,-9145.98,9.925e-05,2]
[346589358,1735119049436,-2263.26,9.925e-05,2]
[346589359,1735119049445,-3044.96,9.925e-05,2]
[346589360,1735119049455,-7418.18,9.925e-05,2]
[346589361,1735119049464,-3951.9,9.925e-05,2]
[346589362,1735119049474,-500.0,9.925e-05,2]
[346589363,1735119049483,-500.0,9.925e-05,2]
[346589364,1735119049493,-1398.18,9.925e-05,2]
[346589365,1735119049502,-892.77,9.925e-05,2]
[346589366,1735119049511,-1649.32,9.925e-05,2]
[346589367,1735119049522,-1872.89,9.925e-05,2]
[346589368,1735119049534,-1298.52,9.925e-05,2]
[346589369,1735119049543,-4027.02,9.925e-05,2]
[346589370,1735119049552,-850.78,9.925e-05,2]
[346589371,1735119049562,-500.0,9.925e-05,2]
[346589372,1735119049571,-2105.3,9.925e-05,2]
[346589373,1735119049580,-1379.33,9.925e-05,2]
[346589374,1735119049590,-1977.72,9.925e-05,2]
[346589375,1735119049599,-3722.9,9.925e-05,2]
[346589376,1735119049608,-3034.82,9.925e-05,2]
[346589377,1735119049618,-3913.45,9.925e-05,2]
[346589378,1735119049627,-3600.83,9.925e-05,2]
[346589379,1735119049637,-500.0,9.925e-05,2]
[346589380,1735119049646,-911.77,9.925e-05,2]
[346589381,1735119049655,-1743.99,9.925e-05,2]
[346589382,1735119049665,-150.17,9.93e-05,2]
[346589383,1735119049676,-190.27840073,9.956e-05,2]
[346589384,1735119049687,-500.0,9.979e-05,2]
[346589385,1735119049697,-500.0,9.979e-05,2]
[346589386,1735119049707,-1678.92,9.979e-05,2]
[346589387,1735119049716,-500.0,9.999e-05,2]
[346589388,1735119049726,-500.0,9.999e-05,2]
[346589389,1735119049735,-500.0,9.999e-05,2]
[346589390,1735119049744,-500.0,9.999e-05,2]
[346589391,1735119049753,-1678.92,9.999e-05,2]
[346589392,1735119049763,-1678.92,9.999e-05,2]
[346589393,1735119049772,-831.35225,0.0001,2]
[346589394,1735119049782,-7840.07,0.00010053,2]
[346589395,1735119049791,-1484.38,0.00010053,2]
[346589396,1735119049799,-1988.767837,0.00010053,2]
[346589397,1735119049810,-1938.82,0.00010053,2]
[346589398,1735119049819,-2009.421594,0.00010053,2]
[346589399,1735119049828,-850.32,0.00010053,2]
[346589400,1735119049838,-1809.06,0.00010053,2]
[346589401,1735119049847,-1380.62,0.00010053,2]
[346589402,1735119049857,-1862.64,0.00010053,2]
[346589403,1735119049867,-2228.79,0.00010053,2]
[346589404,1735119049878,-1563.59,0.00010053,2]
[346589405,1735119049887,-3895.23,0.00010053,2]
[346589406,1735119049896,-2002.66,0.00010053,2]
[346589407,1735119049906,-10486.05,0.00010053,2]
[346589408,1735119049916,-7473.53,0.00010053,2]
[346589409,1735119049926,-1013.21,0.00010053,2]
[346589410,1735119049935,-4855.76,0.00010053,2]
[346589411,1735119049946,-553.08,0.00010054,2]
[346589412,1735119049955,-998.21,0.00010054,2]
[346589413,1735119049964,-500.0,0.00010054,2]
[346589414,1735119049974,-500.0,0.00010054,2]
[346589415,1735119049983,-661.57,0.00010054,2]
[346589416,1735119049992,-715.43,0.00010054,2]
[346589417,1735119050001,-1579.51,0.00010054,2]
[346589418,1735119050011,-925.22,0.00010054,2]
[346589419,1735119050020,-1178.95,0.00010054,2]
[346589420,1735119050029,-1035.33,0.00010054,2]
[346589421,1735119050038,-836.71,0.00010054,2]
[346589422,1735119050047,-818.22,0.00010054,2]
[346589423,1735119050056,-500.0,0.00010054,2]
[346589424,1735119050065,-500.0,0.00010054,2]
[346589425,1735119050074,-500.0,0.00010054,2]
[346589426,1735119050083,-661.27,0.00010054,2]
[346589427,1735119050093,-500.0,0.00010054,2]
[346589428,1735119050102,-500.0,0.00010054,2]
[346589429,1735119050111,-500.0,0.00010054,2]
[346589430,1735119050120,-500.0,0.00010054,2]
[346589431,1735119050129,-1151.22,0.00010054,2]
[346589432,1735119050138,-1368.16,0.00010054,2]
[346589433,1735119050147,-692.53,0.00010054,2]
[346589434,1735119050156,-500.0,0.00010054,2]
[346589435,1735119050166,-1136.98,0.00010054,2]
[346589436,1735119050176,-1194.36,0.00010054,2]
[346589437,1735119050185,-500.0,0.00010054,2]
[346589438,1735119050194,-500.0,0.00010054,2]
[346589439,1735119050204,-500.0,0.00010054,2]
[346589440,1735119050213,-676.69,0.00010054,2]
[346589441,1735119050222,-500.0,0.00010054,2]
[346589442,1735119050231,-509.58,0.00010054,2]
[346589443,1735119050240,-500.0,0.00010054,2]
[346589444,1735119050250,-500.0,0.00010054,2]
[346589445,1735119050259,-500.0,0.00010054,2]
[346589446,1735119050268,-500.0,0.00010054,2]
[346589447,1735119050277,-500.0,0.00010054,2]
[346589448,1735119050287,-646.9,0.00010054,2]
[346589449,1735119050296,-1718.91,0.00010054,2]
[346589450,1735119050305,-833.75,0.00010054,2]
[346589451,1735119050314,-989.93,0.00010054,2]
[346589452,1735119050323,-829.68,0.00010054,2]
[346589453,1735119050332,-1118.36,0.00010054,2]
[346589454,1735119050341,-719.62,0.00010054,2]
[346589455,1735119050351,-500.0,0.00010054,2]
[346589456,1735119050360,-607.71,0.00010054,2]
[346589457,1735119050369,-553.54,0.00010054,2]
[346589458,1735119050378,-1708.52,0.00010054,2]
[346589459,1735119050387,-500.0,0.00010054,2]
[346589460,1735119050396,-852.24,0.00010054,2]
[346589461,1735119050405,-500.0,0.00010054,2]
[346589462,1735119050414,-1057.36,0.00010054,2]
[346589463,1735119050426,-500.0,0.00010054,2]
[346589464,1735119050435,-552.67,0.00010054,2]
[346589465,1735119050445,-862.74,0.00010054,2]
[346589466,1735119050454,-500.0,0.00010054,2]
[346589467,1735119050596,-500.0,0.00010054,2]
[346589468,1735119050621,-500.0,0.00010054,2]
[346589469,1735119050632,-1767.78,0.00010054,2]
[346589470,1735119050642,-985.67,0.00010054,2]
[346589471,1735119050652,-1542.96,0.00010054,2]
[346589472,1735119050661,-500.0,0.00010054,2]
[346589473,1735119050671,-670.58,0.00010054,2]
[346589474,1735119050681,-500.0,0.00010054,2]
[346589475,1735119050691,-1885.06,0.00010054,2]
[346589476,1735119050703,-500.0,0.00010054,2]
[346589477,1735119050712,-3039.44,0.00010054,2]
[346589478,1735119050721,-1158.43,0.00010054,2]
[346589479,1735119050730,-727.95,0.00010054,2]
[346589480,1735119050740,-1006.81,0.00010054,2]
[346589481,1735119050749,-1461.81,0.00010054,2]
[346589482,1735119050759,-2223.53,0.00010054,2]
[346589483,1735119050768,-1531.23,0.00010054,2]
[346589484,1735119050778,-3341.63,0.00010054,2]
[346589485,1735119050788,-500.0,0.00010054,2]
[346589486,1735119050797,-5881.9,0.00010054,2]
[346589487,1735119050806,-628.2,0.00010054,2]
[346589488,1735119050815,-1107.31,0.00010054,2]
[346589489,1735119050825,-500.0,0.00010054,2]
[346589490,1735119050834,-3362.12,0.00010054,2]
[346589491,1735119050844,-1640.34,0.00010054,2]
[346589492,1735119050854,-1623.9,0.00010054,2]
[346589493,1735119050864,-1469.07,0.00010054,2]
[346589494,1735119050873,-14476.15,0.00010054,2]
[346589495,1735119050882,-944.24,0.00010054,2]
[346589496,1735119050892,-1303.36,0.00010054,2]
[346589497,1735119050902,-1945.33,0.00010054,2]
[346589498,1735119050911,-500.0,0.00010054,2]
[346589499,1735119050920,-3519.09,0.00010054,2]
[346589500,1735119050930,-2165.14,0.00010054,2]
[346589501,1735119050940,-801.68,0.00010054,2]
[346589502,1735119050949,-5891.23,0.00010054,2]
[346589503,1735119050959,-1284.49,0.00010054,2]
[346589504,1735119050968,-11872.84,0.00010054,2]
[346589505,1735119050979,-1570.79,0.00010054,2]
[346589506,1735119050988,-3272.35,0.00010054,2]
[346589507,1735119050998,-1756.91,0.00010054,2]
[346589508,1735119051007,-6244.52,0.00010054,2]
[346589509,1735119051016,-859.91,0.00010054,2]
[346589510,1735119051026,-1728.98,0.00010054,2]
[346589511,1735119051035,-3719.72,0.00010054,2]
[346589512,1735119051045,-500.0,0.00010054,2]
[346589513,1735119051054,-7452.8,0.00010054,2]
[346589514,1735119051063,-1801.87,0.00010054,2]
[346589515,1735119051072,-8577.16,0.00010054,2]
[346589516,1735119051081,-7180.5,0.00010054,2]
[346589517,1735119051091,-500.0,0.00010054,2]
[346589518,1735119051100,-2047.88,0.00010054,2]
[346589519,1735119051109,-1942.25,0.00010054,2]
[346589520,1735119051118,-2658.63,0.00010054,2]
[346589521,1735119051127,-7913.55,0.00010054,2]
[346589522,1735119051137,-2657.24,0.00010054,2]
[346589523,1735119051147,-2759.92,0.00010054,2]
[346589524,1735119051158,-610.22,0.00010054,2]
[346589525,1735119051168,-947.11,0.00010054,2]
[346589526,1735119051178,-231.53270958,0.00010054,2]
[346589527,1735119051187,-12161.84270367,0.00010054,2]
[346589528,1735119051197,-500.0,0.00010055,2]
[346589529,1735119051206,-500.0,0.00010055,2]
[346589530,1735119051216,-571.99,0.00010055,2]
[346589531,1735119051225,-500.0,0.00010055,2]
[346589532,1735119051234,-500.0,0.00010055,2]
[346589533,1735119051243,-500.0,0.00010055,2]
[346589534,1735119051253,-513.78,0.00010055,2]
[346589535,1735119051262,-500.0,0.00010055,2]
[346589536,1735119051273,-500.0,0.00010055,2]
[346589537,1735119051282,-593.2,0.00010055,2]
[346589538,1735119051291,-500.0,0.00010055,2]
[346589539,1735119051300,-500.0,0.00010055,2]
[346589540,1735119051309,-500.0,0.00010055,2]
[346589541,1735119051318,-500.0,0.00010055,2]
[346589542,1735119051328,-608.2,0.00010055,2]
[346589543,1735119051337,-654.44,0.00010055,2]
[346589544,1735119051347,-807.93,0.00010055,2]
[346589545,1735119051356,-500.0,0.00010055,2]
[346589546,1735119051365,-500.0,0.00010055,2]
[346589547,1735119051375,-500.0,0.00010055,2]
[346589548,1735119051384,-500.0,0.00010055,2]
[346589549,1735119051394,-500.0,0.00010055,2]
[346589550,1735119051404,-500.0,0.00010055,2]
[346589551,1735119051414,-500.0,0.00010055,2]
[346589552,1735119051424,-458.88443116,0.00010055,2]
[346589553,1735119051434,-500.0,0.00010055,2]
[346589554,1735119051444,-500.0,0.00010055,2]
[346589555,1735119051454,-500.0,0.00010055,2]
[346589556,1735119051464,-500.0,0.00010055,2]
[346589557,1735119051474,-500.0,0.00010055,2]
[346589558,1735119051484,-500.0,0.00010055,2]
[346589559,1735119051494,-500.0,0.00010055,2]
[346589560,1735119051503,-500.0,0.00010055,2]
[346589561,1735119051512,-604.55,0.00010055,2]
[346589562,1735119051522,-500.0,0.00010055,2]
[346589563,1735119051536,-500.0,0.00010055,2]
[346589564,1735119051546,-500.0,0.00010055,2]
[346589565,1735119051555,-201.63881693,0.00010055,2]
[346589566,1735119051565,-500.0,0.00010055,2]
[346589567,1735119051574,-500.0,0.00010055,2]
[346589568,1735119051584,-500.0,0.00010055,2]
[346589569,1735119051593,-624.06,0.00010055,2]
[346589570,1735119051603,-545.74,0.00010055,2]
[346589571,1735119051612,-500.0,0.00010055,2]
[346589572,1735119051623,-500.0,0.00010055,2]
[346589573,1735119051632,-500.0,0.00010055,2]
[346589574,1735119051642,-500.0,0.00010055,2]
[346589575,1735119051652,-500.0,0.00010055,2]
[346589576,1735119051661,-684.75,0.00010055,2]
[346589577,1735119051671,-500.0,0.00010055,2]
[346589578,1735119051681,-500.0,0.00010055,2]
[346589579,1735119051691,-500.0,0.00010055,2]
[346589580,1735119051701,-574.96,0.00010055,2]
[346589581,1735119051711,-500.0,0.00010055,2]
[346589582,1735119051721,-500.0,0.00010055,2]
[346589583,1735119051730,-500.0,0.00010055,2]
[346589584,1735119051740,-681.17,0.00010055,2]
[346589585,1735119051749,-561.75663026,0.00010055,2]
[346589586,1735119051759,-501.60320696,0.00010055,2]
[346589587,1735119051768,-500.25,0.00010055,2]
[346589588,1735119051779,-641.82,0.00010055,2]
[346589589,1735119051789,-1217.55,0.00010055,2]
[346589590,1735119051798,-556.33,0.00010055,2]
[346589591,1735119051808,-500.0,0.00010055,2]
[346589592,1735119051818,-577.67,0.00010055,2]
[346589593,1735119051828,-500.0,0.00010055,2]
[346589594,1735119051837,-889.09,0.00010055,2]
[346589595,1735119051847,-500.0,0.00010055,2]
[346589596,1735119051856,-500.0,0.00010055,2]
[346589597,1735119051865,-1335.92,0.00010055,2]
[346589598,1735119051875,-1358.28,0.00010055,2]
[346589599,1735119051884,-500.0,0.00010055,2]
[346589600,1735119051894,-500.0,0.00010055,2]
[346589601,1735119051903,-500.0,0.00010055,2]
[346589602,1735119051912,-500.0,0.00010055,2]
[346589603,1735119051922,-500.0,0.00010055,2]
[346589604,1735119051931,-513.48,0.00010055,2]
[346589605,1735119051941,-664.32,0.00010055,2]
[346589606,1735119051951,-500.0,0.00010055,2]
[346589607,1735119051960,-508.16064713,0.00010055,2]
[346589608,1735119051969,-885.29,0.00010055,2]
[346589609,1735119051978,-500.0,0.00010055,2]
[346589610,1735119051987,-500.0,0.00010055,2]
[346589611,1735119051997,-500.0,0.00010055,2]
[346589612,1735119052006,-500.0,0.00010055,2]
[346589613,1735119052015,-500.0,0.00010055,2]
[346589614,1735119052024,-500.0,0.00010055,2]
[346589615,1735119052033,-500.0,0.00010055,2]
[346589616,1735119052043,-500.0,0.00010055,2]
[346589617,1735119052052,-500.0,0.00010055,2]
[346589618,1735119052062,-568.45,0.00010055,2]
[346589619,1735119052071,-876.98,0.00010055,2]
[346589620,1735119052080,-597.81,0.00010055,2]
[346589621,1735119052089,-500.0,0.00010055,2]
[346589622,1735119052098,-775.53,0.00010055,2]
[346589623,1735119052108,-500.0,0.00010055,2]
[346589624,1735119052117,-500.0,0.00010055,2]
[346589625,1735119052126,-500.0,0.00010055,2]
[346589626,1735119052136,-1221.15,0.00010055,2]
[346589627,1735119052145,-500.0,0.00010055,2]
[346589628,1735119052154,-646.47931942,0.00010055,2]
[346589629,1735119052164,-636.12,0.00010055,2]
[346589630,1735119052174,-869.03,0.00010055,2]
[346589631,1735119052184,-500.0,0.00010055,2]
[346589632,1735119052193,-543.39,0.00010055,2]
[346589633,1735119052203,-906.27,0.00010055,2]
[346589634,1735119052212,-179.86713345,0.00010055,2]
[346589635,1735119052222,-500.0,0.00010055,2]
[346589636,1735119052231,-754.67,0.00010055,2]
[346589637,1735119052240,-500.0,0.00010055,2]
[346589638,1735119052250,-500.0,0.00010055,2]
[346589639,1735119052259,-500.0,0.00010055,2]
[346589640,1735119052269,-500.0,0.00010055,2]
[346589641,1735119052278,-500.0,0.00010055,2]
[346589642,1735119052288,-500.0,0.00010055,2]
[346589643,1735119052297,-679.84,0.00010055,2]
[346589644,1735119052307,-500.0,0.00010055,2]
[346589645,1735119052315,-500.0,0.00010055,2]
[346589646,1735119052325,-500.0,0.00010055,2]
[346589647,1735119052334,-1078.87,0.00010055,2]
[346589648,1735119052344,-500.0,0.00010055,2]
[346589649,1735119052353,-741.14,0.00010055,2]
[346589650,1735119052362,-755.21,0.00010055,2]
[346589651,1735119052371,-655.07,0.00010055,2]
[346589652,1735119052380,-626.2,0.00010055,2]
[346589653,1735119052390,-500.0,0.00010055,2]
[346589654,1735119052399,-500.0,0.00010055,2]
[346589655,1735119052409,-680.66,0.00010055,2]
[346589656,1735119052420,-691.62,0.00010055,2]
[346589657,1735119052429,-500.0,0.00010055,2]
[346589658,1735119052439,-500.0,0.00010055,2]
[346589659,1735119052448,-323.29148533,0.00010055,2]
[346589660,1735119052458,-639.37,0.00010055,2]
[346589661,1735119052468,-500.0,0.00010055,2]
[346589662,1735119052477,-500.0,0.00010055,2]
[346589663,1735119052487,-1178.61,0.00010055,2]
[346589664,1735119052496,-573.9753605,0.00010055,2]
[346589665,1735119052505,-1078.22,0.00010055,2]
[346589666,1735119052515,-500.0,0.00010055,2]
[346589667,1735119052525,-500.0,0.00010055,2]
[346589668,1735119052539,-507.55,0.00010055,2]
[346589669,1735119052548,-500.0,0.00010055,2]
[346589670,1735119052557,-500.0,0.00010055,2]
[346589671,1735119052567,-500.0,0.00010055,2]
[346589672,1735119052577,-501.62,0.00010055,2]
[346589673,1735119052587,-836.06,0.00010055,2]
[346589674,1735119052597,-500.0,0.00010055,2]
[346589675,1735119052606,-500.0,0.00010055,2]
[346589676,1735119052616,-597.65,0.00010055,2]
[346589677,1735119052626,-505.88,0.00010055,2]
[346589678,1735119052636,-500.0,0.00010055,2]
[346589679,1735119052645,-611.76,0.00010055,2]
[346589680,1735119052654,-950.65,0.00010055,2]
[346589681,1735119052664,-500.0,0.00010055,2]
[346589682,1735119052674,-546.93,0.00010055,2]
[346589683,1735119052684,-500.0,0.00010055,2]
[346589684,1735119052694,-500.0,0.00010055,2]
[346589685,1735119052703,-1276.76,0.00010055,2]
[346589686,1735119052712,-516.34426877,0.00010055,2]
[346589687,1735119052721,-500.0,0.00010055,2]
[346589688,1735119052730,-500.0,0.00010055,2]
[346589689,1735119052738,-596.8469121,0.00010055,2]
[346589690,1735119052895,-511.90559221,0.00010055,2]
[346589691,1735119052905,-510.61,0.00010055,2]
[346589692,1735119052914,-500.0,0.00010055,2]
[346589693,1735119052924,-500.0,0.00010055,2]
[346589694,1735119052933,-500.0,0.00010055,2]
[346589695,1735119052943,-500.0,0.00010055,2]
[346589696,1735119052952,-500.0,0.00010055,2]
[346589697,1735119052962,-500.0,0.00010055,2]
[346589698,1735119052971,-500.0,0.00010055,2]
[346589699,1735119052980,-500.0,0.00010055,2]
[346589700,1735119052990,-500.0,0.00010055,2]
[346589701,1735119052999,-500.0,0.00010055,2]
[346589702,1735119053008,-1294.94,0.00010055,2]
[346589703,1735119053018,-500.0,0.00010055,2]
[346589704,1735119053027,-500.0,0.00010055,2]
[346589705,1735119053037,-500.0,0.00010055,2]
[346589706,1735119053046,-500.0,0.00010055,2]
[346589707,1735119053055,-438.766097,0.00010055,2]
[346589708,1735119053064,-500.0,0.00010055,2]
[346589709,1735119053074,-500.0,0.00010055,2]